fUSD/lending_fUSD_20260401
["ID","MTS","AMOUNT","RATE_DAILY","PERIOD"]
[419240385,1775032239824,-500.0,0.00013698,2]
[419240386,1775032239833,-500.0,0.00013698,2]
[419240387,1775032239843,-500.0,0.00013698,2]
[419240388,1775032239852,-500.0,0.00013698,2]
[419240389,1775032239862,-500.0,0.00013698,2]
[419240390,1775032239872,-500.0,0.00013698,2]
[419240391,1775032239881,-500.0,0.00013698,2]
[419240393,1775032239890,-500.0,0.00013698,2]
[419240395,1775032239900,-500.0,0.00013698,2]
[419240397,1775032239909,-500.0,0.00013698,2]
[419240399,1775032239918,-500.0,0.00013698,2]
[419240401,1775032239927,-500.0,0.00013698,2]
[419240403,1775032239936,-500.0,0.00013698,2]
[419240405,1775032239944,-500.0,0.00013698,2]
[419240407,1775032239953,-500.0,0.00013698,2]
[419240409,1775032239962,-500.0,0.00013698,2]
[419240411,1775032239971,-500.0,0.00013698,2]
[419240413,1775032239980,-500.0,0.00013698,2]
[419240415,1775032239988,-500.0,0.00013698,2]
[419240417,1775032239997,-500.0,0.00013698,2]
[419240419,1775032240007,-500.0,0.00013698,2]
[419240421,1775032240015,-500.0,0.00013698,2]
[419240423,1775032240024,-500.0,0.00013698,2]
[419240425,1775032240033,-500.0,0.00013698,2]
[419240427,1775032240043,-500.0,0.00013698,2]
[419240429,1775032240052,-541.27886182,0.00013698,2]
[419240431,1775032240061,-500.0,0.00013698,2]
[419240433,1775032240071,-500.0,0.00013698,2]
[419240435,1775032240080,-500.0,0.00013698,2]
[419240437,1775032240089,-500.0,0.00013698,2]
[419240438,1775032240098,-500.0,0.00013698,2]
[419240440,1775032240106,-500.0,0.00013698,2]
[419240442,1775032240116,-500.0,0.00013698,2]
[419240444,1775032240125,-500.0,0.00013698,2]
[419240446,1775032240134,-500.0,0.00013698,2]
[419240448,1775032240143,-500.0,0.00013698,2]
[419240450,1775032240152,-500.0,0.00013698,2]
[419240452,1775032240161,-500.0,0.00013698,2]
[419240454,1775032240171,-183.58723642,0.00013698,2]
[419240456,1775032240179,-500.0,0.00013698,2]
[419240458,1775032240189,-500.0,0.00013698,2]
[419240460,1775032240198,-500.0,0.00013698,2]
[419240462,1775032240207,-500.0,0.00013698,2]
[419240464,1775032240216,-500.0,0.00013698,2]
[419240466,1775032240224,-500.0,0.00013698,2]
[419240468,1775032240233,-500.0,0.00013698,2]
[419240470,1775032240242,-500.0,0.00013698,2]
[419240472,1775032240253,-500.0,0.00013698,2]
[419240474,1775032240262,-500.0,0.00013698,2]
[419240476,1775032240271,-500.0,0.00013698,2]
[419240478,1775032240280,-500.0,0.00013698,2]
[419240480,1775032240290,-500.0,0.00013698,2]
[419240482,1775032240300,-500.0,0.00013698,2]
[419240484,1775032240309,-500.0,0.00013698,2]
[419240486,1775032240318,-500.0,0.00013698,2]
[419240487,1775032240327,-500.0,0.00013698,2]
[419240488,1775032240336,-500.0,0.00013698,2]
[419240489,1775032240346,-500.0,0.00013698,2]
[419240490,1775032240355,-500.0,0.00013698,2]
[419240491,1775032240364,-500.0,0.00013698,2]
[419240492,1775032240374,-500.0,0.00013698,2]
[419240493,1775032240383,-500.0,0.00013698,2]
[419240494,1775032240393,-500.0,0.00013698,2]
[419240495,1775032240403,-150.0,0.00013699,2]
[419240496,1775032240413,-150.0,0.00013699,2]
[419240497,1775032240423,-150.0,0.00013699,2]
[419240498,1775032240432,-150.0,0.00013699,2]
[419240499,1775032240442,-150.0,0.00013699,2]
[419240500,1775032240451,-150.0,0.00013699,2]
[419240501,1775032240462,-166.66,0.00013699,2]
[419240502,1775032240471,-3670.62,0.00013699,2]
[419240503,1775032240481,-158.5,0.00013699,2]
[419240504,1775032240491,-792.51,0.00013699,2]
[419240505,1775032240502,-500.37557038,0.00013699,2]
[419240506,1775032240511,-500.0,0.00013699,2]
[419240507,1775032240520,-500.0,0.00013699,2]
[419240508,1775032240530,-500.0,0.00013699,2]
[419240509,1775032240540,-500.0,0.00013699,2]
[419240510,1775032240549,-627.00850068,0.00013699,2]
[419240511,1775032240559,-500.0,0.00013699,2]
[419240512,1775032240568,-500.0,0.00013699,2]
[419240513,1775032240577,-500.0,0.00013699,2]
[419240514,1775032240586,-500.0,0.00013699,2]
[419240515,1775032240595,-330.62596809,0.00013699,2]
[419240516,1775032240604,-500.0,0.00013699,2]
[419240517,1775032240613,-500.0,0.00013699,2]
[419240518,1775032240622,-500.0,0.00013699,2]
[419240519,1775032240632,-500.0,0.00013699,2]
[419240520,1775032240641,-500.0,0.00013699,2]
[419240521,1775032240650,-500.0,0.00013699,2]
[419240522,1775032240659,-500.73578888,0.00013699,2]
[419240523,1775032240668,-500.0,0.00013699,2]
[419240524,1775032240677,-500.0,0.00013699,2]
[419240525,1775032240687,-500.0,0.00013699,2]
[419240526,1775032240696,-500.0,0.00013699,2]
[419240527,1775032240705,-500.0,0.00013699,2]
[419240528,1775032240715,-500.0,0.00013699,2]
[419240529,1775032240724,-500.41125099,0.00013699,2]
[419240530,1775032240734,-500.0,0.00013699,2]
[419240531,1775032240743,-500.0,0.00013699,2]
[419240532,1775032240752,-536.9866911,0.00013699,2]
[419240533,1775032240761,-500.0,0.00013699,2]
[419240534,1775032240770,-509.88873086,0.00013699,2]
[419240535,1775032240779,-500.0,0.00013699,2]
[419240536,1775032240788,-312.57026801,0.00013699,2]
[419240537,1775032240797,-342.86927072,0.00013699,2]
[419240538,1775032240806,-500.0,0.00013699,2]
[419240539,1775032240816,-500.0,0.00013699,2]
[419240540,1775032240825,-500.0,0.00013699,2]
[419240541,1775032240834,-500.0,0.00013699,2]
[419240542,1775032240843,-500.0,0.00013699,2]
[419240543,1775032240852,-330.85378434,0.00013699,2]
[419240544,1775032240862,-500.0,0.00013699,2]
[419240545,1775032240871,-409.4729,0.000137,22]
[419240546,1775032240881,-162.41,0.000137,2]
[419240547,1775032240890,-166.66,0.00013836,2]
[419240548,1775032240899,-200.0,0.00013836,2]
[419240549,1775032240908,-881.14,0.00013854,2]
[419240550,1775032240917,-346.81653029,0.00013953,2]
[419240551,1775032240926,-785.2,0.00013954,2]
[419240552,1775032240936,-150.0,0.00013973,2]
[419240553,1775032240951,-150.0,0.00013973,2]
[419240554,1775032240960,-150.0,0.00013973,2]
[419240555,1775032240970,-150.0,0.00013973,2]
[419240556,1775032240979,-150.0,0.00013973,2]
[419240557,1775032240988,-150.0,0.00013973,2]
[419240558,1775032240997,-166.66,0.00013973,2]
[419240559,1775032241007,-28704.32350983,0.00014006,2]
[419240560,1775032241017,-2110.10742,0.00014095,7]
[419240561,1775032241026,-166.66,0.0001411,2]
[419240562,1775032241302,-22679.01170405,0.00014121,2]
[419240563,1775032241311,-43110.67199221,0.00014121,2]
[419240564,1775032241320,-881.14,0.00014128,2]
[419240565,1775032241330,-500.0,0.00014194,2]
[419240566,1775032241339,-785.2,0.00014228,2]
[419240567,1775032241348,-166.66,0.00014247,2]
[419240568,1775032241356,-150.0,0.00014247,2]
[419240569,1775032241366,-150.0,0.00014247,2]
[419240570,1775032241375,-150.0,0.00014247,2]
[419240571,1775032241384,-150.0,0.00014247,2]
[419240572,1775032241393,-150.0,0.00014247,2]
[419240573,1775032241403,-150.0,0.00014247,2]
[419240574,1775032241412,-356.03578514,0.00014247,2]
[419240575,1775032241421,-1000.0,0.00014247,2]
[419240576,1775032241430,-367.40868416,0.00014247,2]
[419240577,1775032241439,-298.21038318,0.00014247,2]
[419240578,1775032241449,-1000.0,0.00014247,2]
[419240579,1775032241459,-1000.0,0.00014247,2]
[419240580,1775032241468,-8346.5560401,0.00014319,2]
[419240581,1775032241477,-166.66,0.00014384,2]
[419240582,1775032241487,-3670.62,0.00014384,2]
[419240583,1775032241496,-200.0,0.00014384,2]
[419240584,1775032241505,-150.0,0.000144,2]
[419240585,1775032241515,-150.0,0.000144,2]
[419240586,1775032241524,-150.0,0.000144,2]
[419240587,1775032241532,-150.0,0.000144,2]
[419240588,1775032241545,-150.0,0.000144,2]
[419240589,1775032241554,-150.01563451,0.000144,2]
[419240590,1775032241563,-150.22908623,0.000144,2]
[419240591,1775032241572,-150.0,0.000144,2]
[419240592,1775032241583,-150.0,0.000144,2]
[419240593,1775032241592,-881.14,0.00014402,2]
[419240594,1775032241603,-150.0,0.00014427,2]
[419240595,1775032241612,-150.0,0.00014427,2]
[419240596,1775032241621,-785.2,0.00014502,2]
[419240597,1775032241631,-500.0,0.00014603,2]
[419240598,1775032241640,-500.0,0.0001463,2]
[419240599,1775032241649,-3162.0,0.00014672,2]
[419240600,1775032241658,-7955.0,0.00014672,2]
[419240601,1775032241667,-881.14,0.00014676,2]
[419240602,1775032241676,-346.82,0.00014753,2]
[419240603,1775032241686,-785.2,0.00014776,2]
[419240604,1775032241695,-1579.04808524,0.00014795,2]
[419240605,1775032241704,-1500.0,0.00014795,2]
[419240606,1775032241714,-1500.0,0.00014795,2]
[419240607,1775032241723,-200.0,0.00014932,2]
[419240608,1775032241732,-881.14,0.0001495,2]
[419240609,1775032241741,-300.0,0.00015,2]
[419240610,1775032241751,-22679.01170405,0.00015011,2]
[419240611,1775032241760,-43110.67199221,0.00015011,2]
[419240612,1775032241769,-785.2,0.0001505,2]
[419240613,1775032241779,-3670.62,0.00015068,2]
[419240614,1775032241789,-10000.0,0.00015195,7]
[419240615,1775032241799,-10000.0,0.00015195,7]
[419240616,1775032241808,-10000.0,0.00015195,7]
[419240617,1775032241818,-2069.0,0.00015195,7]
[419240618,1775032241827,-526.3306,0.000152,27]
[419240619,1775032241837,-150.0,0.000152,2]
[419240620,1775032241846,-150.0,0.000152,2]
[419240621,1775032241855,-150.0,0.000152,2]
[419240622,1775032241864,-150.0,0.000152,2]
[419240623,1775032241875,-150.0,0.000152,2]
[419240624,1775032241886,-150.0,0.000152,2]
[419240625,1775032241896,-160.0,0.00015217,2]
[419240626,1775032241906,-426.9,0.00015224,2]
[419240627,1775032241915,-160.0,0.00015239,2]
[419240628,1775032241925,-160.0,0.00015242,2]
[419240629,1775032241934,-785.2,0.00015324,2]
[419240630,1775032241944,-2000.0,0.00015342,2]
[419240631,1775032241955,-1097.255858,0.00015438,7]
[419240632,1775032241965,-7285.85,0.00015471,2]
[419240633,1775032241977,-3674.27,0.00015471,2]
[419240634,1775032241986,-597.35,0.00015471,2]
[419240635,1775032241996,-200.0,0.0001548,2]
[419240636,1775032242006,-785.2,0.00015598,2]
[419240637,1775032242016,-2000.0,0.000156,2]
[419240638,1775032242026,-505.0,0.00015684,4]
[419240639,1775032242037,-306.259251,0.00015753,2]
[419240640,1775032242046,-3670.62,0.00015753,2]
[419240641,1775032242055,-668.78,0.00015872,2]
[419240642,1775032242064,-500.0,0.00015877,2]
[419240643,1775032242076,-2500.0,0.0001589,2]
[419240644,1775032242085,-22679.01170405,0.000159,2]
[419240645,1775032242094,-43110.67199221,0.000159,2]
[419240647,1775032242104,-7032.9794788,0.000159,2]
[419240648,1775032242112,-2460.00763187,0.000159,2]
[419240649,1775032242122,-5054.75480365,0.0001596,2]
[419240650,1775032242131,-320.44,0.00015965,2]
[419240651,1775032242141,-811.2730325,0.0001599,2]
[419240652,1775032242151,-151.0,0.00015997,2]
[419240653,1775032242162,-264.08018043,0.00016,2]
[419240654,1775032242173,-234.08601707,0.00016,2]
[419240655,1775032242182,-180.29517447,0.00016,2]
[419240656,1775032242193,-169.09058318,0.00016,2]
[419240657,1775032242203,-190.75003775,0.00016,2]
[419240658,1775032242212,-150.69192865,0.00016,2]
[419240659,1775032242220,-185.99177959,0.00016,2]
[419240660,1775032242229,-279666.22569868,0.00016,2]
[419240671,1775032243320,-400.0,0.00016,2]
[419240672,1775032243337,-38002.157581,0.00016,2]
[419240674,1775032243746,-1102.83249196,0.00016,2]
[419240675,1775032243758,-333.33284218,0.00016,2]
[419240676,1775032243770,-4250.98644685,0.00016,2]
[419240677,1775032243782,-2051732.83085293,0.00016,2]
[419240678,1775032244042,-1872.766336,0.00012246,2]
[419240679,1775032244052,-3585.532672,0.00012246,2]
[419240680,1775032244061,-12927.58661107,0.00016,2]
[419240681,1775032244085,-238.28913434,0.00013288,2]
[419240682,1775032244095,-549589.34146164,0.00016,2]
[419240683,1775032244105,-200.0,0.00016,2]
[419240684,1775032244115,-200.0,0.00016,2]
[419240685,1775032244124,-151.0,0.00016,2]
[419240686,1775032244135,-151.0,0.00016,2]
[419240687,1775032244145,-151.0,0.00016,2]
[419240688,1775032244155,-151.0,0.00016,2]
[419240689,1775032244164,-151.0,0.00016,2]
[419240690,1775032244174,-151.0,0.00016,2]
[419240691,1775032244184,-151.0,0.00016,2]
[419240692,1775032244195,-168.838368,0.00016,2]
[419240693,1775032244204,-151.0,0.00016,2]
[419240694,1775032244214,-500.0,0.00016,2]
[419240695,1775032244225,-500.0,0.00016,2]
[419240696,1775032244235,-795.517152,0.00016,2]
[419240697,1775032244245,-500.0,0.00016,2]
[419240698,1775032244256,-500.0,0.00016,2]
[419240699,1775032244267,-500.0,0.00016,2]
[419240700,1775032244278,-500.0,0.00016,2]
[419240701,1775032244288,-500.0,0.00016,2]
[419240702,1775032244298,-795.517152,0.00016,2]
[419240703,1775032244309,-500.0,0.00016,2]
[419240704,1775032244319,-795.517152,0.00016,2]
[419240705,1775032244329,-795.517152,0.00016,2]
[419240706,1775032244339,-500.0,0.00016,2]
[419240707,1775032244349,-500.0,0.00016,2]
[419240708,1775032244359,-250.0,0.00016,2]
[419240709,1775032244368,-500.0,0.00016,2]
[419240710,1775032244379,-250.0,0.00016,2]
[419240711,1775032244389,-500.0,0.00016,2]
[419240712,1775032244399,-500.0,0.00016,2]
[419240713,1775032244409,-500.0,0.00016,2]
[419240714,1775032244420,-500.0,0.00016,2]
[419240715,1775032244431,-500.0,0.00016,2]
[419240716,1775032244441,-500.0,0.00016,2]
[419240717,1775032244451,-500.0,0.00016,2]
[419240718,1775032244461,-500.0,0.00016,2]
[419240719,1775032244471,-500.0,0.00016,2]
[419240720,1775032244482,-500.0,0.00016,2]
[419240721,1775032244492,-500.0,0.00016,2]
[419240722,1775032244502,-500.0,0.00016,2]
[419240723,1775032244512,-500.0,0.00016,2]
[419240724,1775032244524,-500.0,0.00016,2]
[419240725,1775032244533,-500.0,0.00016,2]
[419240726,1775032244546,-500.0,0.00016,2]
[419240727,1775032244557,-500.0,0.00016,2]
[419240728,1775032244567,-500.0,0.00016,2]
[419240729,1775032244578,-500.0,0.00016,2]
[419240730,1775032244589,-500.0,0.00016,2]
[419240731,1775032244599,-500.0,0.00016,2]
[419240732,1775032244609,-500.0,0.00016,2]
[419240733,1775032244620,-500.0,0.00016,2]
[419240734,1775032244631,-500.0,0.00016,2]
[419240735,1775032244641,-500.0,0.00016,2]
[419240736,1775032244651,-500.0,0.00016,2]
[419240737,1775032244661,-500.0,0.00016,2]
[419240738,1775032244672,-500.0,0.00016,2]
[419240739,1775032244682,-500.0,0.00016,2]
[419240740,1775032244692,-500.0,0.00016,2]
[419240741,1775032244702,-363.417537,0.00016,2]
[419240742,1775032244712,-358.45,0.00016,2]
[419240743,1775032244722,-350.353973,0.00016,2]
[419240744,1775032244731,-350.353973,0.00016,2]
[419240745,1775032244743,-350.353973,0.00016,2]
[419240746,1775032244752,-350.353973,0.00016,2]
[419240747,1775032244761,-662.78323418,0.00016001,2]
[419240748,1775032244771,-200.0,0.00016028,2]
[419240749,1775032244780,-1394.77,0.00016116,2]
[419240750,1775032244789,-9340.04,0.00016116,2]
[419240751,1775032244799,-4427.0,0.00016139,2]
[419240752,1775032244808,-200.0,0.0001616,2]
[419240753,1775032244817,-200.0,0.0001616,2]
[419240754,1775032244826,-200.0,0.00016322,2]
[419240755,1775032244835,-200.0,0.00016322,2]
[419240756,1775032244845,-1251.85,0.00016438,2]
[419240757,1775032244855,-3670.62,0.00016438,2]
[419240758,1775032244864,-250.0,0.00016438,2]
[419240759,1775032244876,-1379.93134742,0.00016438,2]
[419240760,1775032244886,-200.0,0.00016485,2]
[419240761,1775032244897,-200.0,0.00016485,2]
[419240762,1775032244906,-200.0,0.00016576,2]
[419240763,1775032244916,-200.0,0.0001665,2]
[419240764,1775032244925,-200.0,0.0001665,2]
[419240765,1775032244935,-676.5379,0.000167,32]
[419240766,1775032244944,-157.21,0.00016712,2]
[419240767,1775032244954,-1214.29,0.00016931,2]
[419240768,1775032244963,-350.0,0.00017,2]
[419240769,1775032244972,-170.03,0.00017123,2]
[419240770,1775032244981,-200.0,0.00017124,2]
[419240771,1775032244990,-1176.73,0.00017424,2]
[419240772,1775032244999,-775.8,0.00017438,2]
[419240773,1775032245009,-393.886718,0.00017451,7]
[419240774,1775032245018,-304.0,0.00017473,2]
[419240775,1775032245027,-304.0,0.00017597,2]
[419240776,1775032245037,-304.0,0.00017616,2]
[419240777,1775032245049,-304.0,0.00017649,2]
[419240778,1775032245058,-304.0,0.0001766,2]
[419240779,1775032245067,-304.0,0.0001767,2]
[419240780,1775032245076,-200.0,0.00017672,2]
[419240781,1775032245086,-500.0,0.00017701,2]
[419240782,1775032245096,-500.0,0.00017701,2]
[419240783,1775032245105,-175.33019501,0.00017701,2]
[419240784,1775032245114,-500.0,0.00017701,2]
[419240785,1775032245125,-489.51900798,0.00017701,2]
[419240786,1775032245135,-500.0,0.00017701,2]
[419240787,1775032245144,-500.0,0.00017701,2]
[419240788,1775032245155,-500.0,0.00017701,2]
[419240789,1775032245164,-500.0,0.00017701,2]
[419240790,1775032245173,-212.34445911,0.00017701,2]
[419240791,1775032245182,-500.0,0.00017701,2]
[419240792,1775032245191,-500.0,0.00017701,2]
[419240793,1775032245200,-500.0,0.00017701,2]
[419240794,1775032245208,-500.0,0.00017701,2]
[419240795,1775032245217,-376.79746068,0.00017701,2]
[419240796,1775032245226,-500.0,0.00017701,2]
[419240797,1775032245235,-304.0,0.00017709,2]
[419240798,1775032245244,-304.0,0.00017718,2]
[419240799,1775032245252,-4857.22,0.00017728,2]
[419240800,1775032245262,-2449.51,0.00017728,2]
[419240801,1775032245270,-448.86,0.00017728,2]
[419240802,1775032245279,-929.84,0.00017728,2]
[419240803,1775032245287,-6226.69,0.00017728,2]
[419240804,1775032245298,-2880.0,0.00017753,2]
[419240805,1775032245308,-10099.8,0.00017784,2]
[419240806,1775032245318,-304.0,0.00017841,2]
[419240807,1775032245327,-304.0,0.00017906,2]
[419240808,1775032245337,-304.0,0.00017911,2]
[419240809,1775032245346,-304.0,0.00017917,2]
[419240810,1775032245355,-304.0,0.00017984,2]
[419240811,1775032245365,-1500.0,0.00018094,2]
[419240812,1775032245375,-304.0,0.00018097,2]
[419240813,1775032245385,-304.0,0.00018119,2]
[419240814,1775032245394,-304.0,0.00018183,2]
[419240815,1775032245404,-304.0,0.00018185,2]
[419240816,1775032245414,-869.6122,0.000182,37]
[419240817,1775032245424,-304.0,0.00018212,2]
[419240818,1775032245433,-200.0,0.0001822,2]
[419240819,1775032245442,-505.0,0.00018256,6]
[419240820,1775032245451,-168.26,0.00018393,2]
[419240821,1775032245460,-200.0,0.00018475,2]
[419240822,1775032245470,-200.0,0.00018475,2]
[419240823,1775032245480,-200.0,0.00018475,2]
[419240824,1775032245489,-200.0,0.00018475,2]
[419240825,1775032245499,-200.0,0.00018475,2]
[419240826,1775032245510,-200.0,0.00018475,2]
[419240827,1775032245519,-200.0,0.00018475,2]
[419240828,1775032245528,-200.0,0.00018475,2]
[419240829,1775032245537,-205.0,0.00018475,2]
[419240830,1775032245550,-500.0,0.00018548,2]
[419240831,1775032245559,-304.0,0.0001858,2]
[419240832,1775032245568,-304.0,0.0001863,2]
[419240833,1775032245578,-306.0,0.00018652,2]
[419240834,1775032245587,-200.0,0.00018768,2]
[419240835,1775032245596,-304.0,0.00018838,2]
[419240836,1775032245606,-773.0,0.00018873,5]
[419240837,1775032245615,-304.0,0.00018877,2]
[419240838,1775032245625,-400.0,0.00019,2]
[419240839,1775032245634,-423.91679296,0.00019031,2]
[419240840,1775032245643,-304.0,0.00019068,2]
[419240841,1775032245652,-304.0,0.00019115,2]
[419240842,1775032245662,-304.0,0.00019122,2]
[419240843,1775032245672,-150.1102686,0.000192,2]
[419240844,1775032245681,-2000.0,0.000193,2]
[419240845,1775032245690,-213.62,0.00019399,2]
[419240846,1775032245700,-219.07152529,0.00019446,2]
[419240847,1775032245711,-1117.7872,0.000196,42]
[419240848,1775032245720,-150.0,0.0002,2]
[419240849,1775032245730,-150.0,0.0002,2]
[419240850,1775032245739,-1000.0,0.0002,2]
[419240851,1775032245748,-297.81404585,0.0002,20]
[419240852,1775032245758,-825.0,0.0002,30]
[419240853,1775032245767,-213.62,0.00020249,2]
[419240854,1775032245778,-150.0,0.00020418,2]
[419240855,1775032245787,-150.0,0.00020418,2]
[419240856,1775032245797,-150.0,0.00020418,2]
[419240857,1775032245806,-150.0,0.00020418,2]
[419240858,1775032245815,-150.0,0.00020418,2]
[419240860,1775032245825,-150.0,0.00020418,2]
[419240861,1775032245835,-234.0,0.00020418,2]
[419240862,1775032245845,-550.0,0.00020581,2]
[419240863,1775032245854,-550.0,0.00020581,2]
[419240864,1775032245864,-550.0,0.00020581,2]
[419240865,1775032245875,-550.0,0.00020581,2]
[419240866,1775032245884,-550.0,0.00020581,2]
[419240867,1775032245894,-550.0,0.00020581,2]
[419240868,1775032245903,-550.0,0.00020581,2]
[419240869,1775032245913,-550.0,0.00020581,2]
[419240870,1775032245923,-639.0,0.00020581,2]
[419240871,1775032245934,-505.0,0.00020829,8]
[419240872,1775032245944,-1107.5140027,0.00020928,2]
[419240873,1775032245955,-501.0,0.00021,2]
[419240874,1775032245965,-450.0,0.00021,2]
[419240875,1775032245974,-1436.7878,0.000211,47]
[419240876,1775032245984,-820.0,0.00021567,5]
[419240877,1775032245994,-1020.0,0.00021567,5]
[419240878,1775032246003,-5000.0,0.00021918,2]
[419240879,1775032246012,-4279.14,0.00021974,2]
[419240880,1775032246024,-403.84524185,0.00021987,2]
[419240881,1775032246033,-426.0,0.00022,2]
[419240882,1775032246042,-153.0,0.00022,2]
[419240883,1775032246052,-879.0,0.00022,2]
[419240884,1775032246061,-1338.0,0.00022,2]
[419240885,1775032246071,-4385.0,0.00022,2]
[419240886,1775032246082,-1219.0,0.00022,2]
[419240887,1775032246092,-525.0,0.00022,2]
[419240888,1775032246102,-175.27,0.00022,30]
[419240889,1775032246111,-500.0,0.00022188,2]
[419240890,1775032246120,-825.0,0.00022431,30]
[419240891,1775032246129,-1846.8266,0.000226,52]
[419240892,1775032246138,-210.87,0.00022681,2]
[419240893,1775032246148,-177.23,0.00022681,2]
[419240894,1775032246158,-158.53,0.00022716,2]
[419240895,1775032246168,-4693.82,0.0002274,2]
[419240896,1775032246177,-250.0,0.00022799,4]
[419240897,1775032246186,-168.27,0.00022991,2]
[419240898,1775032246196,-5857.77368525,0.00023,2]
[419240899,1775032246205,-2000.0,0.00023,2]
[419240900,1775032246215,-426.0,0.00023,2]
[419240901,1775032246224,-153.0,0.00023,2]
[419240902,1775032246233,-500.0,0.00023,2]
[419240903,1775032246243,-879.0,0.00023,2]
[419240904,1775032246252,-1338.0,0.00023,2]
[419240905,1775032246261,-4385.0,0.00023,2]
[419240906,1775032246270,-1219.0,0.00023,2]
[419240907,1775032246279,-525.0,0.00023,2]
[419240908,1775032246288,-505.0,0.00023402,10]
[419240909,1775032246298,-150.0,0.00023653,2]
[419240910,1775032246307,-156.0,0.00024,7]
[419240911,1775032246317,-156.0,0.00024,10]
[419240912,1775032246327,-426.0,0.00024,2]
[419240913,1775032246336,-153.0,0.00024,2]
[419240914,1775032246345,-879.0,0.00024,2]
[419240915,1775032246354,-1338.0,0.00024,2]
[419240916,1775032246363,-4385.0,0.00024,2]
[419240917,1775032246372,-1219.0,0.00024,2]
[419240918,1775032246381,-525.0,0.00024,2]
[419240919,1775032246391,-203.08622411,0.00024096,2]
[419240920,1775032246401,-365.5552034,0.00024096,2]
[419240921,1775032246410,-2373.8846,0.000241,57]
[419240922,1775032246420,-150.0,0.00024151,2]
[419240923,1775032246429,-377.9484536,0.00024169,2]
[419240924,1775032246438,-2000.0,0.000243,2]
[419240926,1775032246449,-500.0,0.00024411,2]
[419240928,1775032246458,-150.0,0.00024626,2]
[419240930,1775032246467,-236.26,0.00024658,2]
[419240932,1775032246476,-1000.0,0.00024658,2]
[419240934,1775032246487,-150.0,0.00024658,2]
[419240936,1775032246496,-500.0,0.00024791,2]
[419240938,1775032246505,-825.0,0.00024861,60]
[419240940,1775032246514,-151.0,0.000249,2]
[419240942,1775032246523,-151.0,0.000249,2]
[419240944,1775032246533,-151.0,0.000249,2]
[419240946,1775032246542,-151.0,0.000249,2]
[419240948,1775032246552,-151.0,0.000249,2]
[419240950,1775032246562,-151.0,0.000249,2]
[419240952,1775032246573,-151.0,0.000249,2]
[419240954,1775032246582,-73095.275885,0.000249,2]
[419240956,1775032246591,-500.0,0.00024932,2]
[419240958,1775032246600,-500.0,0.00024932,2]
[419240960,1775032246609,-426.0,0.00025,2]
[419240962,1775032246618,-154.66442286,0.00025,2]
[419240964,1775032246627,-879.0,0.00025,2]